[Event "Late-Titled-Tuesday-Blitz-January-30-2024"]
[Site "Chess.com"]
[Date "2024.01.30"]
[Round "5"]
[White "ATM622"]
[Black "Siniauski"]
[Result "0-1"]
[WhiteElo "2460"]
[BlackElo "2620"]
[TimeControl "180+1"]
[EndTime "14:56:22 PST"]
[Termination "Siniauski won on time"]

1. d4 {[%clk 0:03:00.9]} 1... Nf6 {[%clk 0:02:57.5]} 2. c4 {[%clk 0:02:59.8]}
2... e6 {[%clk 0:02:56.9]} 3. g3 {[%clk 0:03:00.3]} 3... d5 {[%clk 0:02:56.3]}
4. Bg2 {[%clk 0:03:00.5]} 4... Bb4+ {[%clk 0:02:57]} 5. Nd2 {[%clk 0:02:59.6]}
5... O-O {[%clk 0:02:54]} 6. Qc2 {[%clk 0:02:58.5]} 6... c5 {[%clk 0:02:42.9]}
7. cxd5 {[%clk 0:02:51.4]} 7... exd5 {[%clk 0:02:34.4]} 8. Nf3 {[%clk
0:02:49.2]} 8... Nc6 {[%clk 0:02:28.5]} 9. dxc5 {[%clk 0:02:42.7]} 9... Re8
{[%clk 0:02:22.6]} 10. e3 {[%clk 0:02:31.3]} 10... d4 {[%clk 0:02:19]} 11. O-O
{[%clk 0:02:28.7]} 11... dxe3 {[%clk 0:02:07]} 12. fxe3 {[%clk 0:02:29.6]} 12...
Rxe3 {[%clk 0:01:23.9]} 13. Nb3 {[%clk 0:02:25.3]} 13... Qd3 {[%clk 0:01:17.1]}
14. Qxd3 {[%clk 0:02:13.7]} 14... Rxd3 {[%clk 0:01:18]} 15. Ne1 {[%clk
0:01:07.7]} 15... Bxe1 {[%clk 0:00:42.1]} 16. Rxe1 {[%clk 0:01:07]} 16... Be6
{[%clk 0:00:42.8]} 17. Nd2 {[%clk 0:00:43.7]} 17... Nd4 {[%clk 0:00:39.8]} 18.
Ne4 {[%clk 0:00:07.2]} 18... Nc2 {[%clk 0:00:36.2]} 19. Nxf6+ {[%clk 0:00:05.7]}
19... gxf6 {[%clk 0:00:37.1]} 20. Bxb7 {[%clk 0:00:05.4]} 20... Rb8 {[%clk
0:00:35.1]} 21. c6 {[%clk 0:00:05.1]} 21... Nxe1 {[%clk 0:00:34.2]} 22. Bf4
{[%clk 0:00:04.2]} 22... Nc2 {[%clk 0:00:31.7]} 23. Rc1 {[%clk 0:00:01.6]} 23...
Nd4 {[%clk 0:00:32]} 24. Bxb8 {[%clk 0:00:01.6]} 24... Ne2+ {[%clk 0:00:32.3]}
25. Kf2 {[%clk 0:00:02]} 25... Nxc1 {[%clk 0:00:33.2]} 26. c7 {[%clk 0:00:01.9]}
26... Rd2+ {[%clk 0:00:30.5]} 27. Ke3 {[%clk 0:00:02]} 27... Rxb2 {[%clk
0:00:31.4]} 28. Bc6 {[%clk 0:00:01.5]} 28... Nxa2 {[%clk 0:00:26.6]} 29. Bb7
{[%clk 0:00:01.3]} 29... Rxb7 {[%clk 0:00:26.2]} 0-1

[Event "Late-Titled-Tuesday-Blitz-January-30-2024"]
[Site "Chess.com"]
[Date "2024.01.30"]
[Round "5"]
[White "JSPrepz"]
[Black "Arteler"]
[Result "1-0"]
[WhiteElo "2859"]
[BlackElo "2575"]
[TimeControl "180+1"]
[EndTime "14:56:23 PST"]
[Termination "JSPrepz won by resignation"]

1. e4 {[%clk 0:03:00.9]} 1... e6 {[%clk 0:03:00.2]} 2. Nf3 {[%clk 0:03:00.5]}
2... d5 {[%clk 0:03:00.9]} 3. e5 {[%clk 0:03:01.2]} 3... c5 {[%clk 0:03:01]} 4.
b4 {[%clk 0:03:01.5]} 4... b6 {[%clk 0:03:01.2]} 5. a3 {[%clk 0:02:57.7]} 5...
Nc6 {[%clk 0:02:59.7]} 6. c3 {[%clk 0:02:57.2]} 6... d4 {[%clk 0:02:46]} 7. Bd3
{[%clk 0:02:47.9]} 7... Nge7 {[%clk 0:02:33.6]} 8. O-O {[%clk 0:02:45.7]} 8...
Bb7 {[%clk 0:02:15.8]} 9. Be4 {[%clk 0:02:42.3]} 9... Nd5 {[%clk 0:02:05.3]} 10.
Re1 {[%clk 0:02:40.7]} 10... Be7 {[%clk 0:02:04.8]} 11. c4 {[%clk 0:02:36.6]}
11... Nc7 {[%clk 0:02:04.4]} 12. b5 {[%clk 0:02:36]} 12... Na5 {[%clk
0:02:04.8]} 13. d3 {[%clk 0:02:33]} 13... Bxe4 {[%clk 0:01:56.3]} 14. Rxe4
{[%clk 0:02:33.9]} 14... a6 {[%clk 0:01:56.2]} 15. a4 {[%clk 0:02:22.8]} 15...
axb5 {[%clk 0:01:47.2]} 16. axb5 {[%clk 0:02:20.8]} 16... Nxc4 {[%clk
0:01:47.6]} 17. Rxa8 {[%clk 0:02:11.2]} 17... Qxa8 {[%clk 0:01:48.5]} 18. Rg4
{[%clk 0:02:09.4]} 18... Na5 {[%clk 0:01:10.4]} 19. Rxg7 {[%clk 0:02:09.3]}
19... Nxb5 {[%clk 0:01:06]} 20. Ng5 {[%clk 0:01:56]} 20... Bxg5 {[%clk 0:00:59]}
21. Bxg5 {[%clk 0:01:56.9]} 21... Nc6 {[%clk 0:00:59.6]} 22. Qh5 {[%clk
0:01:53.7]} 22... Nxe5 {[%clk 0:00:46]} 23. Nd2 {[%clk 0:01:30.8]} 23... Ng6
{[%clk 0:00:33.2]} 24. h3 {[%clk 0:01:22.7]} 24... Nd6 {[%clk 0:00:29.3]} 25.
Rxh7 {[%clk 0:01:16.3]} 25... Rxh7 {[%clk 0:00:29.1]} 26. Qxh7 {[%clk
0:01:17.2]} 26... Qd5 {[%clk 0:00:22.5]} 27. Qg8+ {[%clk 0:01:14.2]} 27... Kd7
{[%clk 0:00:22.9]} 28. h4 {[%clk 0:00:41.2]} 28... Ne7 {[%clk 0:00:18.9]} 29.
Qb8 {[%clk 0:00:39.9]} 29... Nc6 {[%clk 0:00:18.5]} 30. Qf8 {[%clk 0:00:36.2]}
30... b5 {[%clk 0:00:15.4]} 31. Ne4 {[%clk 0:00:28.3]} 31... c4 {[%clk
0:00:13.3]} 32. Nf6+ {[%clk 0:00:27]} 32... Kc7 {[%clk 0:00:09.7]} 33. Nxd5+
{[%clk 0:00:27.9]} 33... exd5 {[%clk 0:00:09.5]} 34. Bf4 {[%clk 0:00:28.8]} 1-0

[Event "Late-Titled-Tuesday-Blitz-January-30-2024"]
[Site "Chess.com"]
[Date "2024.01.30"]
[Round "5"]
[White "SnekkerAndersen"]
[Black "Binary010"]
[Result "1-0"]
[WhiteElo "2642"]
[BlackElo "2892"]
[TimeControl "180+1"]
[EndTime "14:56:25 PST"]
[Termination "SnekkerAndersen won on time"]

1. d4 {[%clk 0:03:00.9]} 1... Nf6 {[%clk 0:02:59.4]} 2. c4 {[%clk 0:03:01]} 2...
e6 {[%clk 0:03:00]} 3. Nf3 {[%clk 0:03:00.9]} 3... d5 {[%clk 0:03:00.6]} 4. Nc3
{[%clk 0:02:59.9]} 4... h6 {[%clk 0:03:00.4]} 5. cxd5 {[%clk 0:02:55.6]} 5...
exd5 {[%clk 0:03:00.8]} 6. Bf4 {[%clk 0:02:55.8]} 6... Bb4 {[%clk 0:02:58.4]} 7.
e3 {[%clk 0:02:53.1]} 7... Ne4 {[%clk 0:02:50.6]} 8. Qc2 {[%clk 0:02:47.5]} 8...
Bf5 {[%clk 0:02:42.1]} 9. Bd3 {[%clk 0:02:47.1]} 9... g5 {[%clk 0:02:31]} 10.
Bg3 {[%clk 0:02:35]} 10... h5 {[%clk 0:02:31]} 11. h4 {[%clk 0:01:48.3]} 11...
g4 {[%clk 0:02:17.2]} 12. Ne5 {[%clk 0:01:37]} 12... Bxc3+ {[%clk 0:01:59.7]}
13. bxc3 {[%clk 0:01:36.7]} 13... f6 {[%clk 0:02:00.4]} 14. Bxe4 {[%clk
0:01:06.3]} 14... Bxe4 {[%clk 0:01:55.8]} 15. Nd3 {[%clk 0:01:06.4]} 15... Nd7
{[%clk 0:01:38.8]} 16. O-O {[%clk 0:01:04.1]} 16... c5 {[%clk 0:01:36.8]} 17.
Qd2 {[%clk 0:01:04.1]} 17... c4 {[%clk 0:01:30.6]} 18. Nf4 {[%clk 0:01:03.9]}
18... Nf8 {[%clk 0:01:27.4]} 19. f3 {[%clk 0:01:02.9]} 19... gxf3 {[%clk
0:01:27.3]} 20. gxf3 {[%clk 0:01:03.8]} 20... Bh7 {[%clk 0:00:58.7]} 21. e4
{[%clk 0:01:04.1]} 21... dxe4 {[%clk 0:00:54.1]} 22. fxe4 {[%clk 0:01:04.1]}
22... Bxe4 {[%clk 0:00:30.3]} 23. Rae1 {[%clk 0:01:02.6]} 23... f5 {[%clk
0:00:30.9]} 24. Rxe4+ {[%clk 0:00:45.4]} 24... fxe4 {[%clk 0:00:30.8]} 25. Re1
{[%clk 0:00:46]} 25... Qd7 {[%clk 0:00:11.3]} 26. Rxe4+ {[%clk 0:00:45.7]} 26...
Kd8 {[%clk 0:00:11.8]} 27. Re5 {[%clk 0:00:44.4]} 27... Qg4 {[%clk 0:00:07.7]}
28. Rg5 {[%clk 0:00:44.1]} 28... Qf3 {[%clk 0:00:06.5]} 29. Qe1 {[%clk
0:00:35.7]} 29... Rh7 {[%clk 0:00:04.1]} 30. Ne6+ {[%clk 0:00:29.5]} 30... Nxe6
{[%clk 0:00:04.4]} 31. Qxe6 {[%clk 0:00:30.4]} 31... Qf7 {[%clk 0:00:01.5]} 32.
Rg8+ {[%clk 0:00:25.7]} 1-0

[Event "Late-Titled-Tuesday-Blitz-January-30-2024"]
[Site "Chess.com"]
[Date "2024.01.30"]
[Round "5"]
[White "Jospem"]
[Black "ChessSkool"]
[Result "1-0"]
[WhiteElo "3061"]
[BlackElo "2713"]
[TimeControl "180+1"]
[EndTime "14:56:30 PST"]
[Termination "Jospem won on time"]

1. e4 {[%clk 0:03:00.9]} 1... c6 {[%clk 0:02:59.4]} 2. d4 {[%clk 0:03:01]} 2...
d5 {[%clk 0:03:00.3]} 3. e5 {[%clk 0:03:01.8]} 3... Bf5 {[%clk 0:03:00.2]} 4. h4
{[%clk 0:03:02.2]} 4... h5 {[%clk 0:03:00.3]} 5. Bd3 {[%clk 0:03:02.5]} 5...
Bxd3 {[%clk 0:03:00.8]} 6. Qxd3 {[%clk 0:03:03.4]} 6... Qa5+ {[%clk 0:03:01]} 7.
b4 {[%clk 0:03:03.8]} 7... Qa6 {[%clk 0:03:00.3]} 8. e6 {[%clk 0:03:04.1]} 8...
Qxd3 {[%clk 0:02:57.5]} 9. cxd3 {[%clk 0:03:05]} 9... fxe6 {[%clk 0:02:57.6]}
10. Nd2 {[%clk 0:03:05.2]} 10... Nh6 {[%clk 0:02:41.5]} 11. Ndf3 {[%clk
0:02:52.7]} 11... Nf5 {[%clk 0:02:39.7]} 12. Nh3 {[%clk 0:02:50.9]} 12... a5
{[%clk 0:02:35.1]} 13. bxa5 {[%clk 0:02:47]} 13... g6 {[%clk 0:02:28.1]} 14. Nf4
{[%clk 0:02:45.2]} 14... Rxa5 {[%clk 0:02:05.1]} 15. Nxe6 {[%clk 0:02:37.1]}
15... Na6 {[%clk 0:01:57.8]} 16. O-O {[%clk 0:02:33.4]} 16... Bg7 {[%clk
0:01:33.6]} 17. Re1 {[%clk 0:02:18.6]} 17... Ra4 {[%clk 0:01:25.5]} 18. Nxg7+
{[%clk 0:02:17.5]} 18... Nxg7 {[%clk 0:01:25.8]} 19. Rb1 {[%clk 0:02:13.1]}
19... Rb4 {[%clk 0:01:00.3]} 20. Bd2 {[%clk 0:02:08.8]} 20... Rxb1 {[%clk
0:00:53]} 21. Rxb1 {[%clk 0:02:09.7]} 21... b5 {[%clk 0:00:53.3]} 22. a4 {[%clk
0:01:58.2]} 22... Nc7 {[%clk 0:00:26.6]} 23. Bf4 {[%clk 0:01:56.1]} 23... Nge6
{[%clk 0:00:26.8]} 24. Bxc7 {[%clk 0:01:53.5]} 24... Nxc7 {[%clk 0:00:27.7]} 25.
Ne5 {[%clk 0:01:54.3]} 25... O-O {[%clk 0:00:24.8]} 26. a5 {[%clk 0:01:45]}
26... Ra8 {[%clk 0:00:20.5]} 27. Nxc6 {[%clk 0:01:45.5]} 27... Kf7 {[%clk
0:00:20.6]} 28. Rc1 {[%clk 0:01:41.3]} 28... Ne6 {[%clk 0:00:16.7]} 29. Ra1
{[%clk 0:01:41.6]} 29... Ra6 {[%clk 0:00:13.9]} 30. Nb4 {[%clk 0:01:41.8]} 30...
Ra7 {[%clk 0:00:14.3]} 31. Nxd5 {[%clk 0:00:34.1]} 31... Nxd4 {[%clk 0:00:12.3]}
32. Nb4 {[%clk 0:00:34.8]} 32... Nb3 {[%clk 0:00:10.3]} 33. Nc6 {[%clk
0:00:29.9]} 33... Nxa1 {[%clk 0:00:06.9]} 34. Nxa7 {[%clk 0:00:30]} 34... b4
{[%clk 0:00:03.7]} 35. Nb5 {[%clk 0:00:30.4]} 35... b3 {[%clk 0:00:01.9]} 36. a6
{[%clk 0:00:30.5]} 1-0

[Event "Late-Titled-Tuesday-Blitz-January-30-2024"]
[Site "Chess.com"]
[Date "2024.01.30"]
[Round "5"]
[White "Chempiblinka"]
[Black "Chesstrainer1"]
[Result "1-0"]
[WhiteElo "2322"]
[BlackElo "2494"]
[TimeControl "180+1"]
[EndTime "14:56:31 PST"]
[Termination "Chempiblinka won on time"]

1. Nf3 {[%clk 0:02:57.9]} 1... Nf6 {[%clk 0:02:56.8]} 2. c4 {[%clk 0:02:57.1]}
2... Nc6 {[%clk 0:02:52.4]} 3. g3 {[%clk 0:02:57.5]} 3... e5 {[%clk 0:02:49.9]}
4. d3 {[%clk 0:02:57.9]} 4... d5 {[%clk 0:02:41.7]} 5. cxd5 {[%clk 0:02:56.9]}
5... Nxd5 {[%clk 0:02:41.7]} 6. Bg2 {[%clk 0:02:56.3]} 6... Be7 {[%clk
0:02:40.1]} 7. Nc3 {[%clk 0:02:55.4]} 7... Nb6 {[%clk 0:02:38.6]} 8. O-O {[%clk
0:02:53.3]} 8... O-O {[%clk 0:02:38.7]} 9. a4 {[%clk 0:02:53.8]} 9... a5 {[%clk
0:02:37.1]} 10. d4 {[%clk 0:02:52.2]} 10... Nxd4 {[%clk 0:02:31.1]} 11. Nxe5
{[%clk 0:02:48.2]} 11... Bf6 {[%clk 0:02:29.8]} 12. Nd3 {[%clk 0:02:34.7]} 12...
c6 {[%clk 0:02:24.3]} 13. Ne4 {[%clk 0:02:25]} 13... Bg4 {[%clk 0:02:17.9]} 14.
Nxf6+ {[%clk 0:02:11.4]} 14... Qxf6 {[%clk 0:02:17.1]} 15. Nf4 {[%clk
0:02:11.8]} 15... Rad8 {[%clk 0:02:12.3]} 16. Bd2 {[%clk 0:01:57.5]} 16... Nc4
{[%clk 0:01:39.2]} 17. Bc3 {[%clk 0:01:57.2]} 17... Rfe8 {[%clk 0:00:34.5]} 18.
h3 {[%clk 0:01:38.5]} 18... g5 {[%clk 0:00:33.8]} 19. hxg4 {[%clk 0:01:33.2]}
19... gxf4 {[%clk 0:00:34.2]} 20. Qd3 {[%clk 0:01:22]} 20... Ne5 {[%clk
0:00:20.1]} 21. Bxd4 {[%clk 0:01:21.1]} 21... Rxd4 {[%clk 0:00:18.9]} 22. Qf5
{[%clk 0:01:04.7]} 22... Qxf5 {[%clk 0:00:15.4]} 23. gxf5 {[%clk 0:01:05.6]}
23... fxg3 {[%clk 0:00:14.8]} 24. fxg3 {[%clk 0:01:01.7]} 24... Rd2 {[%clk
0:00:13.9]} 25. Rfe1 {[%clk 0:00:50.2]} 25... Nc4 {[%clk 0:00:09.3]} 26. Bf3
{[%clk 0:00:48.4]} 26... Rxb2 {[%clk 0:00:07.1]} 27. Rab1 {[%clk 0:00:46.7]}
27... Rxb1 {[%clk 0:00:06]} 28. Rxb1 {[%clk 0:00:47.6]} 28... Re7 {[%clk
0:00:06.4]} 29. Kf2 {[%clk 0:00:45.1]} 29... Nd2 {[%clk 0:00:06]} 30. Rd1 {[%clk
0:00:41.5]} 30... Nxf3 {[%clk 0:00:04.5]} 31. exf3 {[%clk 0:00:42.4]} 31... h5
{[%clk 0:00:03.2]} 32. f6 {[%clk 0:00:41.3]} 32... Re6 {[%clk 0:00:03.2]} 33.
Rd8+ {[%clk 0:00:39.8]} 33... Kh7 {[%clk 0:00:03.4]} 34. Rd7 {[%clk 0:00:38.2]}
34... Rxf6 {[%clk 0:00:02.3]} 35. Rxb7 {[%clk 0:00:38.8]} 35... Rf5 {[%clk
0:00:01.7]} 36. Rc7 {[%clk 0:00:36.1]} 36... Rc5 {[%clk 0:00:01.1]} 37. Rxf7+
{[%clk 0:00:36]} 37... Kg6 {[%clk 0:00:02]} 38. Ra7 {[%clk 0:00:35.6]} 1-0

[Event "Late-Titled-Tuesday-Blitz-January-30-2024"]
[Site "Chess.com"]
[Date "2024.01.30"]
[Round "5"]
[White "Njal28"]
[Black "vladislavkovalev"]
[Result "1-0"]
[WhiteElo "3049"]
[BlackElo "2878"]
[TimeControl "180+1"]
[EndTime "14:56:32 PST"]
[Termination "Njal28 won by resignation"]

1. d4 {[%clk 0:03:00.9]} 1... Nf6 {[%clk 0:03:00.6]} 2. c4 {[%clk 0:03:01]} 2...
e6 {[%clk 0:03:01.1]} 3. Nc3 {[%clk 0:03:01.6]} 3... Bb4 {[%clk 0:03:01.8]} 4.
e3 {[%clk 0:03:02.2]} 4... O-O {[%clk 0:03:01.6]} 5. a3 {[%clk 0:03:02.4]} 5...
Bxc3+ {[%clk 0:03:02.1]} 6. bxc3 {[%clk 0:03:03.3]} 6... d6 {[%clk 0:03:01.8]}
7. Ne2 {[%clk 0:03:03.5]} 7... c5 {[%clk 0:03:02.4]} 8. Ng3 {[%clk 0:03:03.9]}
8... Nc6 {[%clk 0:03:02.4]} 9. Ra2 {[%clk 0:03:04.4]} 9... b6 {[%clk 0:03:02.4]}
10. e4 {[%clk 0:03:04]} 10... cxd4 {[%clk 0:03:00]} 11. cxd4 {[%clk 0:03:04.2]}
11... Ba6 {[%clk 0:03:00.8]} 12. Bg5 {[%clk 0:03:03.7]} 12... h6 {[%clk
0:03:00.9]} 13. h4 {[%clk 0:03:04.3]} 13... Na5 {[%clk 0:02:37.3]} 14. Rd2
{[%clk 0:02:44.6]} 14... Re8 {[%clk 0:01:53.7]} 15. e5 {[%clk 0:02:29.1]} 15...
hxg5 {[%clk 0:01:48.2]} 16. hxg5 {[%clk 0:02:30]} 16... Nh7 {[%clk 0:01:47.2]}
17. Qh5 {[%clk 0:02:28.5]} 17... Qxg5 {[%clk 0:01:47.8]} 18. Qxh7+ {[%clk
0:02:28.8]} 18... Kf8 {[%clk 0:01:48.4]} 19. exd6 {[%clk 0:02:11.1]} 19... f5
{[%clk 0:01:43.8]} 20. Rh5 {[%clk 0:01:52]} 20... Qf6 {[%clk 0:01:39.2]} 21. d7
{[%clk 0:01:15.6]} 21... Red8 {[%clk 0:01:39.4]} 22. Nxf5 {[%clk 0:01:12.8]}
22... Rxd7 {[%clk 0:01:39.7]} 23. Qh8+ {[%clk 0:01:07.6]} 23... Kf7 {[%clk
0:01:39.8]} 24. Qxa8 {[%clk 0:01:05.6]} 24... exf5 {[%clk 0:01:38.3]} 25. Rh8
{[%clk 0:01:02.7]} 25... Re7+ {[%clk 0:01:17.1]} 26. Be2 {[%clk 0:01:02.3]}
26... Kg6 {[%clk 0:00:49.4]} 27. Qg8 {[%clk 0:00:59.2]} 27... Bxc4 {[%clk
0:00:35.2]} 28. Rh6+ {[%clk 0:00:58.9]} 28... Kg5 {[%clk 0:00:22.1]} 29. Rh5+
{[%clk 0:00:54.7]} 29... Kf4 {[%clk 0:00:13.8]} 30. g3+ {[%clk 0:00:53.8]} 30...
Ke4 {[%clk 0:00:14.5]} 31. Bxc4 {[%clk 0:00:30.4]} 31... Kf3+ {[%clk 0:00:06.7]}
32. Be2+ {[%clk 0:00:23.4]} 32... Rxe2+ {[%clk 0:00:02.1]} 33. Rxe2 {[%clk
0:00:24.3]} 33... Qxd4 {[%clk 0:00:02.6]} 34. Qa8+ {[%clk 0:00:24.4]} 34... Kg4
{[%clk 0:00:03]} 35. Rh4+ {[%clk 0:00:24.5]} 1-0

[Event "Late-Titled-Tuesday-Blitz-January-30-2024"]
[Site "Chess.com"]
[Date "2024.01.30"]
[Round "5"]
[White "Doomfist26"]
[Black "vladoboch"]
[Result "0-1"]
[WhiteElo "2605"]
[BlackElo "2484"]
[TimeControl "180+1"]
[EndTime "14:56:32 PST"]
[Termination "vladoboch won by resignation"]

1. e4 {[%clk 0:02:49.7]} 1... e5 {[%clk 0:02:55.5]} 2. Nf3 {[%clk 0:02:47.4]}
2... Nc6 {[%clk 0:02:32.7]} 3. Bb5 {[%clk 0:02:39.9]} 3... a6 {[%clk 0:02:26.2]}
4. Ba4 {[%clk 0:02:37.2]} 4... Nf6 {[%clk 0:02:26.6]} 5. O-O {[%clk 0:02:36.6]}
5... b5 {[%clk 0:02:27.3]} 6. Bb3 {[%clk 0:02:36.5]} 6... Bc5 {[%clk 0:02:28.1]}
7. c3 {[%clk 0:02:31.1]} 7... d6 {[%clk 0:02:28.6]} 8. d4 {[%clk 0:02:28.7]}
8... Bb6 {[%clk 0:02:29.3]} 9. h3 {[%clk 0:02:26.3]} 9... O-O {[%clk 0:02:29.2]}
10. Re1 {[%clk 0:02:26.8]} 10... h6 {[%clk 0:02:29.3]} 11. a4 {[%clk 0:02:21.7]}
11... Rb8 {[%clk 0:02:28.7]} 12. Be3 {[%clk 0:02:11]} 12... Re8 {[%clk
0:02:24.1]} 13. Nbd2 {[%clk 0:02:07.1]} 13... exd4 {[%clk 0:02:23.5]} 14. cxd4
{[%clk 0:02:03.7]} 14... Nb4 {[%clk 0:02:18.2]} 15. a5 {[%clk 0:01:57.3]} 15...
Ba7 {[%clk 0:02:14.8]} 16. e5 {[%clk 0:01:54.3]} 16... Nfd5 {[%clk 0:02:13.6]}
17. Ne4 {[%clk 0:01:49.1]} 17... Nxe3 {[%clk 0:02:07.1]} 18. Rxe3 {[%clk
0:01:18.1]} 18... Bf5 {[%clk 0:01:46.1]} 19. Ng3 {[%clk 0:01:11.4]} 19... Bg6
{[%clk 0:01:38.6]} 20. e6 {[%clk 0:01:10.7]} 20... fxe6 {[%clk 0:01:27.2]} 21.
Rxe6 {[%clk 0:01:11.6]} 21... Rxe6 {[%clk 0:01:25.6]} 22. Bxe6+ {[%clk
0:01:10.5]} 22... Kh8 {[%clk 0:01:23]} 23. Qd2 {[%clk 0:01:01.5]} 23... Qf6
{[%clk 0:01:07.4]} 24. Bg4 {[%clk 0:00:49.7]} 24... Nd3 {[%clk 0:00:55]} 25. Rf1
{[%clk 0:00:34.3]} 25... Bxd4 {[%clk 0:00:42.4]} 26. Nh5 {[%clk 0:00:34.6]}
26... Bxh5 {[%clk 0:00:36.2]} 27. Bxh5 {[%clk 0:00:34.7]} 27... Nf4 {[%clk
0:00:27.4]} 28. Nxd4 {[%clk 0:00:34.4]} 28... Nxh5 {[%clk 0:00:26.9]} 29. Re1
{[%clk 0:00:32.8]} 29... c5 {[%clk 0:00:20.5]} 30. Nc6 {[%clk 0:00:27.9]} 30...
Rf8 {[%clk 0:00:20]} 31. Ne7 {[%clk 0:00:25.9]} 31... Nf4 {[%clk 0:00:13]} 32.
Kh2 {[%clk 0:00:21.5]} 32... Qg5 {[%clk 0:00:10.8]} 33. g3 {[%clk 0:00:21.6]}
33... Nxh3 {[%clk 0:00:09.4]} 34. Qxg5 {[%clk 0:00:20.8]} 34... Nxg5 {[%clk
0:00:09.9]} 35. Ng6+ {[%clk 0:00:21.3]} 35... Kg8 {[%clk 0:00:10.6]} 36. Nxf8
{[%clk 0:00:22]} 36... Kxf8 {[%clk 0:00:11.5]} 37. f4 {[%clk 0:00:22.3]} 37...
Nf3+ {[%clk 0:00:11.4]} 0-1

[Event "Late-Titled-Tuesday-Blitz-January-30-2024"]
[Site "Chess.com"]
[Date "2024.01.30"]
[Round "5"]
[White "ACollins05"]
[Black "ARTHURMOTIVATOR"]
[Result "1-0"]
[WhiteElo "2449"]
[BlackElo "2259"]
[TimeControl "180+1"]
[EndTime "14:56:32 PST"]
[Termination "ACollins05 won on time"]

1. d4 {[%clk 0:03:00.9]} 1... Nf6 {[%clk 0:02:57.4]} 2. c4 {[%clk 0:02:58.5]}
2... c5 {[%clk 0:02:56.9]} 3. d5 {[%clk 0:02:58]} 3... g6 {[%clk 0:02:57.4]} 4.
Nc3 {[%clk 0:02:57.2]} 4... Bg7 {[%clk 0:02:58.3]} 5. e4 {[%clk 0:02:56.9]} 5...
d6 {[%clk 0:02:59]} 6. h3 {[%clk 0:02:55.2]} 6... O-O {[%clk 0:02:58.6]} 7. Bg5
{[%clk 0:02:55.4]} 7... b5 {[%clk 0:02:45.7]} 8. cxb5 {[%clk 0:02:51.2]} 8... a6
{[%clk 0:02:45.3]} 9. a4 {[%clk 0:02:48.2]} 9... Qa5 {[%clk 0:02:27]} 10. Bd2
{[%clk 0:02:44.2]} 10... Qb4 {[%clk 0:02:21.5]} 11. Bd3 {[%clk 0:02:43.6]} 11...
c4 {[%clk 0:02:08.6]} 12. Bc2 {[%clk 0:02:35.7]} 12... e6 {[%clk 0:01:55.1]} 13.
Nge2 {[%clk 0:02:29.2]} 13... Qc5 {[%clk 0:01:29.4]} 14. Be3 {[%clk 0:02:23.7]}
14... Qc7 {[%clk 0:01:26.4]} 15. b6 {[%clk 0:02:23.1]} 15... Qb7 {[%clk
0:01:25.3]} 16. a5 {[%clk 0:02:23.2]} 16... exd5 {[%clk 0:01:24.1]} 17. Nxd5
{[%clk 0:02:22.5]} 17... Nxd5 {[%clk 0:01:22.8]} 18. Qxd5 {[%clk 0:02:23.4]}
18... Nc6 {[%clk 0:01:22.7]} 19. O-O {[%clk 0:02:20.2]} 19... Be6 {[%clk
0:01:22.4]} 20. Qd2 {[%clk 0:02:18]} 20... Rad8 {[%clk 0:01:18.9]} 21. Nd4
{[%clk 0:02:17.3]} 21... d5 {[%clk 0:01:13.8]} 22. Nxc6 {[%clk 0:02:12.6]} 22...
Qxc6 {[%clk 0:01:11]} 23. e5 {[%clk 0:02:04.1]} 23... d4 {[%clk 0:01:08.9]} 24.
Bf4 {[%clk 0:02:01.2]} 24... d3 {[%clk 0:01:07.2]} 25. Ba4 {[%clk 0:02:01]}
25... Qd5 {[%clk 0:01:00.1]} 26. Rfe1 {[%clk 0:01:59.4]} 26... h6 {[%clk
0:00:51.5]} 27. Bd1 {[%clk 0:01:56.7]} 27... g5 {[%clk 0:00:50.5]} 28. Bf3
{[%clk 0:01:56.4]} 28... Qd7 {[%clk 0:00:48]} 29. Bg3 {[%clk 0:01:54.1]} 29...
Bd5 {[%clk 0:00:47.8]} 30. Bxd5 {[%clk 0:01:52.9]} 30... Qxd5 {[%clk 0:00:48.7]}
31. f4 {[%clk 0:01:46.1]} 31... Rfe8 {[%clk 0:00:45.5]} 32. fxg5 {[%clk
0:01:44.9]} 32... Bxe5 {[%clk 0:00:45.3]} 33. Bxe5 {[%clk 0:01:40.9]} 33... Rxe5
{[%clk 0:00:46.2]} 34. Rxe5 {[%clk 0:01:39.9]} 34... Qxe5 {[%clk 0:00:47.1]} 35.
gxh6 {[%clk 0:01:35.5]} 35... Re8 {[%clk 0:00:46.2]} 36. Rf1 {[%clk 0:01:28.1]}
36... Qc5+ {[%clk 0:00:38]} 37. Kh1 {[%clk 0:01:25.2]} 37... Qd5 {[%clk
0:00:31.1]} 38. Qf4 {[%clk 0:01:20.4]} 38... Kf8 {[%clk 0:00:12.4]} 39. Qg4
{[%clk 0:01:06.1]} 39... Re2 {[%clk 0:00:09.5]} 40. h7 {[%clk 0:01:03.9]} 40...
Qe5 {[%clk 0:00:08.6]} 41. Qg8+ {[%clk 0:01:03.1]} 41... Ke7 {[%clk 0:00:08.6]}
42. h8=Q {[%clk 0:00:59.2]} 42... Qd5 {[%clk 0:00:02.1]} 43. Qf8+ {[%clk
0:00:52.2]} 1-0